bitfinex-derivatives/quotes_SOLF0:USTF0_20251119
["timestamp","ask_amount","ask_price","bid_price","bid_amount"]
[1763590521937,3.35,134.83,134.71,13.82760706]
[1763590522235,3.35,134.83,134.76,6.73850158]
[1763590523229,3.23,134.8,134.76,0.05270158]
[1763590523838,3.35,134.83,134.76,0.05270158]
[1763590524041,10.0328,134.83,134.76,0.05270158]
[1763590524235,3.35,134.83,134.76,0.05270158]
[1763590524632,6.6833,134.82,134.76,0.05270158]
[1763590524838,0.05537734,134.8,134.76,0.05270158]
[1763590526236,3.12537734,134.8,134.76,0.05270158]
[1763590526633,3.07,134.77,134.76,0.05270158]
[1763590526943,3.07,134.77,134.69,5.92]
[1763590527132,9.7558,134.77,134.69,5.92]
[1763590527333,3.07,134.76,134.69,5.92]
[1763590528039,0.04958514,134.74,134.71,0.05168978]
[1763590529444,3.11958514,134.74,134.71,0.05168978]
[1763590530235,3.07,134.72,134.61,13.82760706]
[1763590530440,3.07,134.72,134.61,15.62]
[1763590530631,3.07,134.77,134.61,15.62]
[1763590530827,3.07,134.75,134.61,15.62]
[1763590531234,0.05164279,134.69,134.67,6.74363737]
[1763590531433,0.05638805,134.69,134.67,6.74363737]
[1763590531633,3.07,134.78,134.67,1.53333737]
[1763590531834,3.07,134.78,134.62,13.82760706]
[1763590532137,3.07,134.78,134.7,6.6888]
[1763590532643,0.05207165,134.75,134.73,0.05129386]
[1763590533345,3.12207165,134.75,134.73,0.05129386]
[1763590536048,0.05207165,134.75,134.73,0.05129386]
[1763590536745,3.12207165,134.75,134.63,13.82760706]
[1763590537058,3.07,134.75,134.64,15.62]
[1763590537345,3.07,134.75,134.7,6.6889]
[1763590537951,0.04755897,134.74,134.71,0.05282124]
[1763590541456,3.37755897,134.74,134.71,0.05282124]
[1763590543946,0.04755897,134.74,134.71,0.05282124]
[1763590544546,0.04755897,134.74,134.71,6.74132124]
[1763590544746,0.04755897,134.74,134.71,0.05282124]
[1763590545356,0.04755897,134.74,134.72,6.6879]
[1763590546856,6.7,134.79,134.75,6.6864]
[1763590547561,3.37,134.79,134.76,6.686]
[1763590547761,5.89481296,134.79,134.76,6.686]
[1763590548061,3.33,134.78,134.76,0.05278377]
[1763590550157,0.04812749,134.79,134.76,0.05278377]
[1763590550563,3.37812749,134.79,134.76,6.73878377]
[1763590550763,3.37812749,134.79,134.76,0.05278377]
[1763590551462,3.37812749,134.79,134.69,5.46]
[1763590551768,3.33,134.79,134.69,5.46]
[1763590552368,3.33,134.78,134.69,5.46]
[1763590552569,3.3775587,134.75,134.73,0.05563063]
[1763590552769,3.37713131,134.75,134.73,0.05332116]
[1763590553966,3.37713131,134.75,134.67,6.6904]
[1763590554163,3.33,134.75,134.63,13.82760706]
[1763590554471,3.33,134.72,134.65,6.6913]
[1763590554855,0.0497137,134.7,134.67,0.05235549]
[1763590555060,3.3797137,134.7,134.67,0.05235549]
[1763590560269,3.3797137,134.7,134.6,1.29250311]
[1763590560467,3.33,134.68,134.6,1.29250311]
[1763590560675,3.33,134.66,134.6,1.29250311]
[1763590560975,3.33,134.63,134.6,1.29250311]
[1763590561271,3.38224361,134.63,134.6,1.34745389]
[1763590562675,0.05224361,134.63,134.6,1.34745389]
[1763590563284,3.38224361,134.63,134.6,1.34745389]
[1763590568881,3.38224361,134.63,134.57,22.25527962]
[1763590569077,3.38224361,134.63,134.53,0.64]
[1763590569279,6.87913967,134.67,134.53,0.64]
[1763590569280,3.05,134.61,134.53,0.64]
[1763590569888,3.10058453,134.58,134.56,0.05237453]
[1763590570786,0.05058453,134.58,134.56,22.8531266]
[1763590570987,0.05058453,134.58,134.56,6.74817453]
[1763590571588,0.05058453,134.58,134.56,7.44817453]
[1763590571991,0.05058453,134.58,134.56,8.74122993]
[1763590572497,0.05058453,134.58,134.56,31.02494633]
[1763590573100,3.10058453,134.58,134.56,0.05237453]
[1763590578698,0.05058453,134.58,134.57,0.7]
[1763590579801,0.05058453,134.58,134.56,7.44827453]
[1763590580207,0.05058453,134.58,134.56,6.74827453]
[1763590581106,0.05058453,134.58,134.56,7.44827453]
[1763590582808,0.05058453,134.58,134.57,0.7]
[1763590583704,3.05,134.65,134.58,0.7]
[1763590583906,3.05,134.65,134.59,15.62]
[1763590584702,0.04948712,134.63,134.61,0.04885296]
[1763590584898,0.04948712,134.63,134.61,0.74885296]
[1763590585103,0.04948712,134.63,134.62,7.3929]
[1763590586510,0.04948712,134.63,134.61,0.04885296]
[1763590586511,3.26948712,134.63,134.61,0.04885296]
[1763590591598,3.26948712,134.63,134.56,7.12]
[1763590591798,3.22,134.62,134.56,7.86]
[1763590592007,3.22,134.68,134.57,0.74]
[1763590592213,2.57,134.69,134.57,0.74]
[1763590592214,3.22,134.66,134.57,0.74]
[1763590592406,3.22,134.66,134.59,0.74]
[1763590593112,0.0485372,134.64,134.61,0.79629594]
[1763590593311,3.2685372,134.64,134.61,0.79629594]
[1763590593713,3.2685372,134.64,134.61,7.48969594]
[1763590593913,3.2685372,134.64,134.61,6.74969594]
[1763590594109,3.2685372,134.64,134.61,0.05629594]
[1763590594515,3.2685372,134.64,134.55,0.74]
[1763590594717,3.22,134.64,134.55,8.34]
[1763590595117,3.22,134.62,134.56,6.696]
[1763590595417,3.22,134.62,134.55,8.34]
[1763590595617,3.26740532,134.6,134.57,0.05451252]
[1763590595819,3.27543505,134.6,134.57,0.0510161]
[1763590596219,3.27543505,134.6,134.57,6.7463161]
[1763590596618,3.27543505,134.6,134.57,0.0510161]
[1763590602324,3.35,134.58,134.57,0.0510161]
[1763590603118,3.35,134.58,134.54,23.37938416]
[1763590603119,3.35,134.57,134.54,1.29319955]
[1763590603924,3.39887727,134.57,134.54,1.33244479]
[1763590604821,3.35,134.55,134.54,0.03924524]
[1763590605021,3.35,134.54,134.51,1.293512]
[1763590605825,3.35,134.54,134.48,0.85]
[1763590606121,3.39813092,134.52,134.49,1.29380054]
[1763590606626,3.39813092,134.52,134.41,89.16]
[1763590606627,3.35,134.5,134.41,89.16]
[1763590606825,3.40618232,134.47,134.41,118.58736456]
[1763590607618,3.40618232,134.47,134.41,111.88406456]
[1763590608321,3.40618232,134.47,134.38,15.62]
[1763590608625,3.35,134.43,134.38,15.62]
[1763590608830,3.35,134.43,134.36,0.85]
[1763590609024,3.35,134.4,134.36,0.85]
[1763590609824,3.35,134.4,134.36,23.24509734]
[1763590611524,3.35,134.4,134.36,0.85]
[1763590611728,3.35,134.4,134.35,31.03340934]
[1763590611928,3.35,134.4,134.35,8.85120057]
[1763590612233,3.35,134.4,134.35,1.29510057]
[1763590612931,0.04877167,134.41,134.36,0.85]
[1763590613121,3.39877167,134.41,134.36,0.85]
[1763590614228,0.04877167,134.41,134.37,0.85]
[1763590614433,3.39877167,134.41,134.37,0.85]
[1763590614832,3.39877167,134.41,134.37,7.5553]
[1763590615522,3.39877167,134.41,134.36,0.85]
[1763590616534,3.39877167,134.41,134.36,7.5558]
[1763590617230,3.39877167,134.41,134.37,6.7053]
[1763590617433,3.39877167,134.41,134.37,0.85]
[1763590618737,3.39877167,134.41,134.37,7.5553]
[1763590619229,3.39877167,134.41,134.37,0.85]
[1763590620838,3.35,134.48,134.39,0.85]
[1763590621334,3.35,134.48,134.4,6.7036]
[1763590621642,3.35,134.48,134.39,0.85]
[1763590622241,3.39795689,134.45,134.42,0.04678164]
[1763590622941,0.04795689,134.45,134.42,0.89678164]
[1763590623737,0.04795689,134.45,134.43,0.85]
[1763590624338,0.04795689,134.45,134.44,0.85]
[1763590625538,3.35,134.52,134.46,6.7005]
[1763590625940,3.35,134.52,134.44,0.85]
[1763590626548,3.40561843,134.49,134.41,0.85]
[1763590626743,3.35,134.49,134.41,0.85]
[1763590627649,3.39691772,134.46,134.44,0.04863962]
[1763590627849,0.05372651,134.46,134.44,0.04702604]
[1763590628051,0.05372651,134.46,134.44,0.94702604]
[1763590628448,0.05372651,134.46,134.44,7.64872604]
[1763590629151,0.05372651,134.46,134.45,0.9]
[1763590629352,3.32,134.52,134.45,7.6012]
[1763590629645,3.32,134.52,134.45,0.9]
[1763590629849,3.32,134.52,134.46,6.7009]
[1763590630043,3.32,134.52,134.45,0.9]
[1763590630241,0.04707066,134.5,134.49,6.6993]
[1763590630444,3.32,134.57,134.49,7.5993]
[1763590630645,3.32,134.55,134.52,0.05053223]
[1763590630855,3.37502919,134.54,134.52,0.05053223]
[1763590631049,3.37502919,134.54,134.52,0.05235936]
[1763590631050,3.3744156,134.54,134.52,0.05235936]
[1763590632056,0.0544156,134.54,134.52,0.95235936]
[1763590632949,0.0544156,134.54,134.52,7.65025936]
[1763590633356,0.0544156,134.54,134.52,0.95235936]
[1763590634261,3.3744156,134.54,134.52,0.05235936]
[1763590637148,3.3744156,134.54,134.46,0.9]
[1763590638060,3.3744156,134.54,134.49,0.05000677]
[1763590638659,0.0544156,134.54,134.49,0.95000677]
[1763590639855,0.0544156,134.54,134.53,0.9]
[1763590640055,0.0544156,134.54,134.52,7.64780677]
[1763590640258,0.0544156,134.54,134.52,0.95000677]
[1763590641362,0.0544156,134.54,134.52,7.64790677]
[1763590641859,0.0544156,134.54,134.52,6.74790677]
[1763590642066,0.0544156,134.54,134.53,0.9]
[1763590644849,0.0544156,134.54,134.52,6.74790677]
[1763590645055,0.0544156,134.54,134.52,0.05000677]
[1763590646050,0.0544156,134.54,134.52,0.95000677]
[1763590647664,0.0544156,134.54,134.52,0.05000677]
[1763590647858,0.0544156,134.54,134.52,0.94000677]
[1763590648453,3.06,134.63,134.53,0.89]
[1763590648660,3.06,134.61,134.53,0.89]
[1763590648865,3.06,134.61,134.54,6.6965]
[1763590649563,3.06,134.58,134.56,0.04806178]
[1763590649762,3.10888624,134.58,134.56,0.05140587]
[1763590653660,0.04888624,134.58,134.56,0.94140587]
[1763590653865,3.10888624,134.58,134.56,0.05140587]
[1763590655562,0.04888624,134.58,134.56,0.94140587]
[1763590655966,0.04888624,134.58,134.57,0.89]
[1763590656163,0.04888624,134.58,134.57,22.84628148]
[1763590657477,3.06,134.62,134.58,0.89]
[1763590657668,3.06,134.62,134.59,6.6945]
[1763590657868,3.15,134.65,134.59,0.89]
[1763590658176,3.15,134.65,134.57,21.95628148]
[1763590658373,3.15,134.62,134.61,0.05394312]
[1763590665669,3.15,134.61,134.57,22.65022493]
[1763590665866,3.15,134.61,134.56,0.89]
[1763590666082,3.15,134.6,134.53,0.89]
[1763590666581,3.20174948,134.58,134.55,6.74832113]
[1763590669378,3.20174948,134.58,134.55,0.05192113]
[1763590673085,9.89674948,134.58,134.55,0.05192113]
[1763590673287,3.15,134.57,134.55,0.05192113]
[1763590673690,3.15,134.55,134.51,0.89]
[1763590673878,3.15,134.55,134.46,0.89]
[1763590674079,3.15,134.53,134.46,0.89]
[1763590674279,6.81582181,134.57,134.46,0.89]
[1763590674280,3.15,134.51,134.46,0.89]
[1763590674484,3.15,134.51,134.47,7.5901]
[1763590674680,0.05476772,134.5,134.48,0.04744436]
[1763590674984,3.20232841,134.5,134.48,0.04744436]
[1763590680888,0.05232841,134.5,134.49,7.5895]
[1763590681287,3.15,134.53,134.51,6.698]
[1763590681687,3.15,134.53,134.48,0.93744436]
[1763590682186,0.04847441,134.52,134.51,0.89]
[1763590682394,3.1990102,134.53,134.5,0.05539714]
[1763590682589,3.19805359,134.53,134.5,0.94486274]
[1763590683287,3.19805359,134.53,134.5,7.64366274]
[1763590686587,3.19805359,134.53,134.51,7.5883]
[1763590686588,0.04805359,134.53,134.51,7.5883]
[1763590686785,0.04805359,134.53,134.52,0.89]
[1763590687089,0.04805359,134.53,134.51,7.5883]
[1763590687695,0.04805359,134.53,134.52,0.89]
[1763590688803,3.31805359,134.53,134.5,0.05486274]
[1763590688994,0.04805359,134.53,134.5,0.95486274]
[1763590689794,0.04805359,134.53,134.52,0.9]
[1763590691690,13.75517016,134.65,134.51,6.6984]
[1763590691691,3.27,134.58,134.51,0.85]
[1763590692198,3.27,134.58,134.54,6.6967]
[1763590692697,0.04845577,134.57,134.55,0.04799965]
[1763590692895,3.31845577,134.57,134.55,0.04799965]
[1763590693091,3.31845577,134.57,134.55,6.74439965]
[1763590693995,0.04845577,134.57,134.56,0.85]
[1763590694390,3.27,134.63,134.59,0.85]
[1763590695197,3.27,134.66,134.62,6.6929]
[1763590695389,3.27,134.66,134.59,0.85]
[1763590695589,3.27,134.66,134.51,13.3963]
[1763590695590,3.31738603,134.64,134.61,0.05114502]
[1763590695797,3.32170127,134.64,134.61,0.04877328]
[1763590695996,3.27,134.62,134.54,1.58]
[1763590696195,3.27,134.62,134.54,2.48]
[1763590696703,3.27,134.62,134.57,7.5953]
[1763590696900,3.31996851,134.61,134.58,0.0529617]
[1763590697700,0.04996851,134.61,134.58,0.9529617]
[1763590698694,0.04996851,134.61,134.59,6.6944]
[1763590698899,0.04996851,134.61,134.59,7.5944]
[1763590699998,0.04996851,134.61,134.58,0.9529617]
[1763590701704,0.04996851,134.61,134.59,6.6944]
[1763590702501,0.04996851,134.61,134.6,0.9]
[1763590703707,3.27,134.67,134.62,0.9]
[1763590704802,0.05108537,134.66,134.63,0.05482635]
[1763590705106,3.32108537,134.66,134.63,0.05482635]
[1763590705702,3.32108537,134.66,134.63,6.74722635]
[1763590705900,3.32108537,134.66,134.63,0.95482635]
[1763590706903,3.32108537,134.66,134.64,6.6919]
[1763590707498,0.05108537,134.66,134.65,0.89]
[1763590708003,0.05108537,134.66,134.64,6.6919]
[1763590708004,3.06,134.72,134.66,0.89]
[1763590708195,3.06,134.72,134.66,22.88961443]
[1763590708805,3.06,134.72,134.66,0.89]
[1763590709205,3.06,134.72,134.67,6.6905]
[1763590709408,0.05310007,134.7,134.68,0.05137765]
[1763590709810,3.11310007,134.7,134.68,0.05137765]
[1763590711205,3.11310007,134.7,134.62,16.53]
[1763590711411,3.11310007,134.7,134.62,0.89]
[1763590711810,3.06,134.69,134.63,6.6924]
[1763590712011,3.06,134.69,134.59,16.37]
[1763590712207,3.06,134.69,134.59,15.42]
[1763590712412,3.06,134.64,134.63,0.05657627]
[1763590712609,3.06,134.64,134.59,15.42]
[1763590712610,3.06,134.64,134.62,0.05242393]
[1763590712804,3.06,134.64,134.56,0.95]
[1763590714014,3.06,134.6,134.59,0.0515963]
[1763590714307,3.06,134.6,134.58,0.05175999]
[1763590717213,3.06,134.6,134.53,1.0]
[1763590717806,3.06,134.6,134.53,7.6973]
[1763590718117,3.06,134.6,134.53,1.0]
[1763590718319,3.18706084,134.58,134.55,0.05369646]
[1763590719812,0.04706084,134.58,134.56,1.05]
[1763590720110,0.04706084,134.58,134.55,1.10369646]
[1763590721012,0.04706084,134.58,134.56,6.6958]
[1763590721218,0.04706084,134.58,134.55,1.10369646]
[1763590721417,3.18706084,134.58,134.55,0.05369646]
[1763590723223,3.18706084,134.58,134.5,7.7486]
[1763590723414,3.14,134.57,134.5,1.05]
[1763590723612,3.14,134.57,134.49,6.699]
[1763590724022,3.14,134.57,134.47,1.1]
[1763590724420,0.05311411,134.53,134.51,0.03930469]
[1763590724624,3.14,134.52,134.51,0.03930469]
[1763590726527,0.05311411,134.53,134.51,0.03930469]
[1763590726722,0.05311411,134.53,134.51,1.13930469]
[1763590727031,0.05311411,134.53,134.51,0.03930469]
[1763590727537,0.05311411,134.53,134.51,6.73760469]
[1763590727928,0.05311411,134.53,134.52,1.1]
[1763590728532,3.14,134.6,134.55,6.6963]
[1763590729136,3.14,134.6,134.56,6.6959]
[1763590729445,0.05665334,134.59,134.57,0.05451942]
[1763590730444,0.05665334,134.59,134.58,1.1]
[1763590731342,3.14,134.64,134.59,1.1]
[1763590731643,3.14,134.64,134.55,1.1]
[1763590731840,3.14,134.64,134.59,6.6943]
[1763590732240,0.05273664,134.63,134.6,0.0497149]
[1763590732446,3.19273664,134.63,134.6,0.0497149]
[1763590738452,3.19273664,134.63,134.6,6.7433149]
[1763590739054,0.05273664,134.63,134.61,1.1]
[1763590740454,0.05273664,134.63,134.6,1.1497149]
[1763590740756,0.05273664,134.63,134.6,7.8435149]
[1763590741557,0.05273664,134.63,134.61,6.6934]
[1763590742761,3.14,134.69,134.64,1.05]
[1763590742957,3.14,134.69,134.56,1.05]
[1763590743255,3.14,134.69,134.58,1.05]
[1763590743445,3.14,134.69,134.61,1.05]
[1763590743845,3.19679254,134.66,134.64,0.04837652]
[1763590744046,3.1868176,134.66,134.64,0.04837652]
[1763590745359,0.0468176,134.66,134.64,0.04837652]
[1763590746060,0.0468176,134.66,134.64,6.74027652]
[1763590746461,0.0468176,134.66,134.65,1.05]
[1763590746760,0.0468176,134.66,134.64,6.74027652]
[1763590747062,0.0468176,134.66,134.65,1.05]
[1763590748466,3.35,134.72,134.67,6.6905]
[1763590748766,3.35,134.72,134.67,1.05]
[1763590749263,3.35,134.72,134.68,7.74]
[1763590749464,0.05279017,134.71,134.69,0.05638811]
[1763590750261,3.40279017,134.71,134.69,0.05638811]
[1763590757366,3.35,134.7,134.61,1.05]
[1763590757573,3.35,134.7,134.63,1.11]
[1763590757770,3.35,134.7,134.58,1.11]
[1763590758271,3.35,134.64,134.63,0.0480776]
[1763590758463,3.35,134.64,134.62,0.04806605]
[1763590758657,0.05154988,134.65,134.62,0.04806605]
[1763590758969,0.05154988,134.65,134.62,1.15806605]
[1763590760872,0.05154988,134.65,134.63,6.6925]
[1763590761470,0.05154988,134.65,134.63,7.8025]
[1763590761671,3.35,134.71,134.65,6.6913]
[1763590762265,3.35,134.7,134.64,6.6917]
[1763590762471,3.35,134.7,134.61,1.11]
[1763590762774,0.04974907,134.67,134.64,0.05434313]
[1763590762972,0.04974907,134.67,134.64,1.16434313]
[1763590763168,3.39974907,134.67,134.64,1.16434313]
[1763590763767,0.04974907,134.67,134.64,1.16434313]
[1763590765378,0.04974907,134.67,134.65,7.8015]
[1763590766478,0.04974907,134.67,134.66,1.1]
[1763590768473,3.35,134.71,134.68,1.1]
[1763590768870,3.35,134.71,134.64,1.1]
[1763590769074,3.35,134.71,134.67,6.6905]
[1763590769469,3.17145059,134.7,134.68,0.04816465]
[1763590772384,3.12,134.69,134.61,14.19]
[1763590772679,3.12,134.69,134.61,1.15]
[1763590772880,3.12,134.69,134.63,6.6924]
[1763590773074,3.12,134.69,134.61,1.15]
[1763590773471,0.05033747,134.66,134.64,0.0513411]
[1763590773983,0.05033747,134.66,134.64,1.2013411]
[1763590775779,0.05033747,134.66,134.65,1.15]
[1763590777486,3.12,134.7,134.66,7.8406]
[1763590778287,3.12,134.7,134.66,6.6906]
[1763590778585,3.07089588,134.69,134.67,0.05250284]
[1763590780182,3.07089588,134.69,134.67,6.74300284]
[1763590780578,0.05089588,134.69,134.67,1.21250284]
[1763590780778,0.05089588,134.69,134.68,6.69]
[1763590781785,3.02,134.72,134.69,7.8491]
[1763590781988,5.55044971,134.71,134.69,7.8491]
[1763590782282,3.02,134.72,134.69,7.8491]
[1763590782783,3.07642773,134.72,134.69,7.8491]
[1763590783386,0.05642773,134.72,134.68,1.16]
[1763590784087,0.05642773,134.72,134.7,6.6888]
[1763590784584,0.05642773,134.72,134.67,0.05250284]
[1763590784585,0.05642773,134.72,134.71,7.8485]
[1763590785475,3.02,134.75,134.72,7.8476]
[1763590785894,3.02,134.75,134.72,1.16]
[1763590786188,3.02,134.75,134.7,0.05682904]
[1763590786384,3.02,134.73,134.7,0.05682904]
[1763590786577,3.07089938,134.73,134.7,0.05682904]
[1763590788478,5.53967441,134.72,134.7,0.05682904]
[1763590788792,3.02,134.71,134.7,0.05682904]
[1763590789182,3.07089938,134.73,134.7,0.05682904]
[1763590789682,3.07089938,134.73,134.64,4.94]
[1763590789683,3.02,134.71,134.64,4.94]
[1763590790784,3.02,134.68,134.66,0.05132925]
[1763590790984,3.06754306,134.68,134.66,0.0485822]
[1763590794195,3.06754306,134.68,134.6,1.16]
[1763590794394,3.06754306,134.68,134.6,7.8537]
[1763590794594,3.02,134.66,134.6,1.16]
[1763590795197,3.02,134.63,134.62,0.04999178]
[1763590795500,3.02,134.63,134.55,1.21]
[1763590796497,0.04828577,134.6,134.58,1.31537092]
[1763590798499,0.04828577,134.6,134.58,8.01027092]
[1763590799994,0.04828577,134.6,134.58,1.31537092]
[1763590801696,3.06828577,134.6,134.58,0.05537092]
[1763590802293,3.02,134.59,134.52,90.4]
[1763590803300,3.02,134.56,134.54,0.0542885]
[1763590804400,3.02,134.56,134.46,1.26]
[1763590804599,3.02,134.56,134.43,1.26]
[1763590804802,3.02,134.54,134.43,1.26]
[1763590805002,8.54144331,134.54,134.45,1.26]
[1763590805207,31.47011344,134.59,134.45,1.26]
[1763590805208,3.02,134.53,134.45,1.26]
[1763590805410,3.02,134.49,134.48,0.05525904]
[1763590805702,0.04865106,134.5,134.47,1.30947923]
[1763590805904,3.02,134.58,134.47,1.3154375]
[1763590806209,3.02,134.58,134.51,6.6985]
[1763590807007,3.02,134.55,134.53,0.0502604]
[1763590807206,3.07715349,134.55,134.53,0.05051356]
[1763590808302,3.07715349,134.55,134.49,6.6991]
[1763590808507,3.02,134.55,134.47,1.31]
[1763590809403,0.05262604,134.52,134.5,1.36113494]
[1763590810810,0.05262604,134.52,134.51,6.6982]
[1763590811005,0.05262604,134.52,134.5,0.05113494]
[1763590811509,0.05262604,134.52,134.43,62.0]
[1763590811510,3.29262604,134.52,134.43,1.31]
[1763590811808,3.24,134.52,134.43,1.31]
[1763590812405,3.24,134.48,134.46,0.0476712]
[1763590812703,3.28919142,134.48,134.46,0.04771769]
[1763590818105,3.28919142,134.48,134.41,1.29377649]
[1763590818308,3.24,134.47,134.37,1.41]
[1763590818616,3.24,134.45,134.37,1.41]
[1763590819117,3.24,134.44,134.37,1.41]
[1763590819313,3.24,134.41,134.4,0.04445555]
[1763590821121,3.24,134.41,134.36,1.29478736]
[1763590821312,3.24,134.41,134.31,1.45]
[1763590821618,22.3,134.48,134.32,1.2952934]
[1763590821619,3.24,134.4,134.32,1.2952934]
[1763590821814,3.24,134.4,134.29,2.03003734]
[1763590822020,3.24,134.39,134.3,6.7086]
[1763590822228,27.7499838,134.44,134.29,3.32554773]
[1763590822229,3.28720948,134.36,134.29,3.32554773]
[1763590824222,3.28720948,134.36,134.29,2.03003734]
[1763590824527,3.24,134.35,134.29,2.03003734]
[1763590827018,3.23,134.3,134.15,3.34]
[1763590827823,3.23,134.23,134.13,62.0]
[1763590828024,3.23,134.23,134.15,3.34]
[1763590828415,0.0569907,134.19,134.15,3.34]
[1763590829412,3.23,134.27,134.15,3.34]
[1763590829817,3.23,134.27,134.16,6.7155]
[1763590830028,3.23,134.27,134.17,3.34]
[1763590830226,3.23,134.27,134.18,3.34]
[1763590830422,0.05213911,134.24,134.21,0.04932397]
[1763590830624,0.05213911,134.24,134.21,3.38932397]
[1763590832221,3.23,134.33,134.24,3.34]
[1763590832523,3.23,134.33,134.25,6.7113]
[1763590832733,3.23,134.33,134.26,3.34]
[1763590833122,0.05414619,134.31,134.29,3.34]
[1763590834431,3.23,134.44,134.3,3.34]
[1763590835123,3.23,134.44,134.31,3.34]
[1763590835519,3.28478132,134.39,134.36,0.04893967]
[1763590835722,3.28519382,134.39,134.36,0.05301065]
[1763590836830,0.05519382,134.39,134.36,3.39301065]
[1763590838227,3.23,134.46,134.36,4.87301065]
[1763590838434,3.23,134.46,134.4,6.7036]
[1763590839126,0.04993649,134.44,134.42,0.05524275]
[1763590839328,3.23,134.46,134.42,0.05524275]
[1763590839529,3.33,134.5,134.42,3.12524275]
[1763590839719,3.33,134.5,134.42,3.07]
[1763590840030,3.33,134.5,134.39,3.07]
[1763590840231,3.33,134.5,134.4,6.7038]
[1763590840422,3.38232822,134.46,134.44,0.05454441]
[1763590840624,3.38731989,134.46,134.44,0.05530641]
[1763590843326,0.05731989,134.46,134.44,0.05530641]
[1763590843728,0.05731989,134.46,134.44,25.93809724]
[1763590843924,3.33,134.49,134.44,0.05530641]
[1763590845133,3.33,134.47,134.44,0.05530641]
[1763590845432,3.33,134.47,134.44,0.05019783]
[1763590845832,3.37867584,134.48,134.44,3.12019783]
[1763590846633,3.37867584,134.48,134.44,0.05019783]
[1763590847030,3.37867584,134.48,134.44,22.16171969]
[1763590847827,3.37867584,134.48,134.44,0.05019783]
[1763590848030,3.33,134.46,134.44,0.05019783]
[1763590848233,3.33,134.46,134.39,9.7742]
[1763590849439,3.3839989,134.44,134.41,0.05013274]
[1763590849640,3.33,134.44,134.41,22.01596189]
[1763590849939,3.38669749,134.44,134.41,0.05322761]
[1763590852437,3.38669749,134.44,134.35,9.7762]
[1763590852739,22.3,134.48,134.35,9.7762]
[1763590852740,3.33,134.42,134.35,9.7762]
[1763590853629,0.05014222,134.4,134.37,0.05085829]
[1763590854037,0.05014222,134.4,134.37,3.12085829]
[1763590854544,0.05014222,134.4,134.37,25.54110766]
[1763590854745,0.05014222,134.4,134.37,3.12085829]
[1763590856136,0.05014222,134.4,134.37,9.82605829]
[1763590856945,0.05014222,134.4,134.38,3.07]
[1763590857248,0.05014222,134.4,134.37,3.12085829]
[1763590857445,3.38014222,134.4,134.37,0.05085829]
[1763590857739,3.38014222,134.4,134.37,21.97059036]
[1763590857944,3.38014222,134.4,134.37,0.05085829]
[1763590859040,0.05014222,134.4,134.37,3.12085829]
[1763590860131,0.05014222,134.4,134.38,9.7746]
[1763590860333,6.7005,134.47,134.37,22.26106592]
[1763590860334,3.33,134.47,134.39,3.07]
[1763590860532,3.33,134.48,134.39,3.07]
[1763590860946,3.33,134.48,134.42,6.7028]
[1763590861245,6.81582181,134.52,134.44,0.05346729]
[1763590861246,3.38491285,134.46,134.44,0.05346729]
[1763590861448,3.37900696,134.46,134.44,0.05346729]
[1763590861841,3.33,134.5,134.44,3.12346729]
[1763590862039,3.33,134.52,134.44,3.12346729]
[1763590862245,3.33,134.51,134.44,3.07]
[1763590862740,3.33,134.51,134.41,3.07]
[1763590862951,0.04833763,134.47,134.45,3.12464383]
[1763590863647,5.49023292,134.54,134.46,3.07]
[1763590863940,3.33,134.54,134.46,3.07]
[1763590864345,3.33,134.57,134.5,9.7687]
[1763590864549,3.33,134.57,134.5,3.07]
[1763590864748,3.3838283,134.55,134.52,0.05344005]
[1763590866146,0.0538283,134.55,134.52,25.61690413]